bitfinex-derivatives/quotes_ETHF0:USTF0_20250730
["timestamp","ask_amount","ask_price","bid_price","bid_amount"]
[1753882843599,0.94709951,3771.2,3771.0,3.6116]
[1753882843795,1.47741951,3771.2,3771.1,4.13241]
[1753882843995,1.32549928,3771.2,3771.1,4.13241]
[1753882844298,5.98749879,3771.2,3771.1,1.44201]
[1753882844497,5.06979879,3771.2,3771.1,2.85551]
[1753882844704,5.25727011,3771.2,3771.1,2.85551]
[1753882844996,6.17497011,3771.2,3771.1,0.52081]
[1753882845401,6.17497011,3771.2,3770.6,4.129]
[1753882845402,1.8588,3770.7,3770.6,5.5425]
[1753882845703,2.94579062,3770.7,3770.6,6.8194]
[1753882846005,5.04047928,3770.7,3770.6,0.52081]
[1753882846204,8.24827928,3770.7,3770.6,0.52081]
[1753882846397,8.72755227,3770.7,3770.6,0.52081]
[1753882846699,8.72755227,3770.7,3770.6,4.13241]
[1753882846700,1.80485227,3770.7,3770.6,4.13241]
[1753882846900,2.65397928,3770.7,3770.6,4.13241]
[1753882847197,5.04047928,3770.7,3770.6,0.52081]
[1753882847398,2.7972,3770.2,3770.1,2.3347]
[1753882847602,0.53045,3770.3,3770.2,4.13241]
[1753882847803,0.53045,3770.3,3770.2,0.52081]
[1753882848105,1.3284,3770.6,3770.2,0.52081]
[1753882848298,2.2461,3771.0,3770.3,0.52081]
[1753882848503,2.2461,3771.0,3770.1,0.53048]
[1753882848504,3.2078,3771.1,3770.9,0.52081]
[1753882848704,3.2078,3771.1,3770.5,2.6904]
[1753882848705,1.3284,3771.0,3770.5,2.6904]
[1753882848905,4.53367,3771.1,3770.5,3.21121]
[1753882849196,0.5304,3770.7,3770.6,4.13241]
[1753882849403,0.5304,3770.7,3770.6,3.6116]
[1753882849602,0.5304,3770.7,3770.6,4.13241]
[1753882850596,1.8588,3770.7,3770.6,4.13241]
[1753882850795,3.3276,3770.7,3770.6,2.85551]
[1753882850998,1.3284,3770.6,3769.9,1.4135]
[1753882851307,0.53042,3770.5,3770.3,0.9212]
[1753882851605,0.53042,3770.5,3770.4,3.6116]
[1753882851904,0.53042,3770.5,3770.4,4.13241]
[1753882854000,0.53042,3770.6,3770.5,2.3347]
[1753882854210,0.53042,3770.6,3770.5,4.13241]
[1753882855500,4.24532,3770.6,3770.5,0.52081]
[1753882855907,4.24532,3770.6,3770.5,1.44201]
[1753882856208,4.24532,3770.6,3770.5,2.85551]
[1753882856412,4.24532,3770.6,3770.5,1.44201]
[1753882857015,4.24532,3770.6,3770.5,0.52081]
[1753882858406,4.24532,3770.6,3770.5,4.13241]
[1753882858407,1.85882,3770.6,3770.5,4.13241]
[1753882858607,0.53042,3770.6,3770.5,4.13241]
[1753882859308,0.53038,3770.8,3770.6,3.6116]
[1753882859514,0.53038,3770.8,3770.7,3.6116]
[1753882859717,0.53038,3770.8,3770.7,4.13241]
[1753882861014,0.53038,3770.8,3770.7,2.85551]
[1753882861015,4.24528,3770.8,3770.7,2.85551]
[1753882861321,4.24528,3770.8,3770.7,0.52081]
[1753882862311,3.32758,3770.8,3770.7,2.85551]
[1753882862515,0.53038,3770.8,3770.7,4.13241]
[1753882862712,0.53038,3770.9,3770.8,3.6116]
[1753882862912,0.53036,3771.0,3770.9,3.6116]
[1753882863319,0.53036,3771.0,3770.9,4.13241]
[1753882865217,1.32561,3771.8,3771.3,1.4135]
[1753882865515,0.53029,3771.5,3771.3,1.4135]
[1753882865720,0.53026,3771.7,3771.5,1.4135]
[1753882865914,0.2,3771.9,3771.8,0.9212]
[1753882866220,0.2,3771.9,3771.8,7.34021]
[1753882867316,1.3284,3773.2,3772.8,3.6116]
[1753882867616,0.53006,3773.1,3773.0,2.6904]
[1753882867821,0.53006,3773.1,3773.0,3.6116]
[1753882868221,1.85846,3773.1,3773.0,3.6116]
[1753882869523,0.53005,3773.2,3773.1,3.6817]
[1753882870018,0.99730637,3773.2,3773.1,3.6817]
[1753882870716,0.46725637,3773.2,3773.1,3.6817]
[1753882870921,0.53013,3772.6,3772.5,3.6817]
[1753882871219,0.53019,3772.2,3772.0,3.2078]
[1753882871414,0.53019,3772.2,3772.1,2.8259]
[1753882871611,0.53019,3772.2,3772.1,1.2742]
[1753882871920,0.53024,3771.8,3771.7,3.6817]
[1753882872322,1.3463,3772.4,3772.0,2.4075]
[1753882872516,4.15887,3772.3,3772.2,2.4075]
[1753882872821,1.32547,3772.3,3771.8,0.8558]
[1753882873019,0.53025,3771.7,3771.6,3.6817]
[1753882873418,0.53025,3771.8,3771.7,3.6817]
[1753882873926,0.53025,3771.8,3771.4,3.2078]
[1753882873927,0.53025,3771.7,3771.5,2.4075]
[1753882874122,2.7646,3771.6,3771.5,2.4075]
[1753882874720,0.53025,3771.7,3771.6,3.6817]
[1753882874920,0.53018,3772.3,3771.9,0.53023]
[1753882875124,0.53018,3772.3,3772.2,3.6817]
[1753882875528,0.53016,3772.4,3772.2,3.6817]
[1753882875827,0.53014,3772.5,3772.4,3.6817]
[1753882877125,4.15884,3772.5,3772.4,0.8558]
[1753882877631,4.15884,3772.5,3772.4,3.6817]
[1753882877632,0.53014,3772.5,3772.4,3.6817]
[1753882877927,0.53011,3772.8,3772.7,2.8259]
[1753882878127,0.53011,3772.8,3772.7,3.6817]
[1753882878520,4.15881,3772.8,3772.3,1.2742]
[1753882878724,3.29474,3772.5,3772.4,0.8558]
[1753882879229,0.53014,3772.6,3772.4,0.53014]
[1753882879428,0.53014,3772.6,3772.5,3.6817]
[1753882880533,0.53012,3772.7,3772.6,3.6817]
[1753882880732,0.53012,3772.7,3772.6,2.8259]
[1753882881028,0.53012,3772.7,3772.6,3.6817]
[1753882881236,0.53019,3772.2,3772.0,3.738]
[1753882881930,0.53018,3772.3,3772.1,4.21189]
[1753882882131,0.53016,3772.4,3772.3,0.53017]
[1753882882332,0.5302,3772.2,3772.0,3.73801]
[1753882882826,0.5302,3772.2,3772.1,2.8259]
[1753882883028,0.5302,3772.2,3772.1,3.6817]
[1753882883231,0.53018,3772.3,3772.2,4.21188]
[1753882883428,0.53016,3772.4,3772.3,3.6817]
[1753882883732,4.6261,3772.8,3772.2,0.53018]
[1753882883933,0.53018,3772.3,3772.2,3.6817]
[1753882884128,0.53012,3772.7,3772.5,0.53013]
[1753882884334,0.53014,3772.6,3772.4,0.53015]
[1753882884637,2.7646,3773.2,3772.4,4.53318]
[1753882884930,0.53014,3772.5,3772.4,3.2078]
[1753882885133,1.87644,3772.5,3772.4,4.0636]
[1753882885328,4.15884,3772.5,3772.4,0.8558]
[1753882885528,1.87648,3772.3,3772.2,2.4075]
[1753882885728,1.87648,3772.3,3772.2,3.6817]
[1753882886236,0.53019,3772.2,3771.8,3.2078]
[1753882886436,0.53019,3772.2,3771.9,3.6817]
[1753882886736,0.53018,3772.3,3772.2,3.6817]
[1753882886933,2.67152,3772.9,3772.4,0.8558]
[1753882887137,0.53013,3772.6,3772.5,3.35603]
[1753882887435,0.53013,3772.6,3772.5,4.21183]
[1753882888136,0.53012,3772.7,3772.6,0.53012]
[1753882888331,1.87642,3772.7,3772.6,3.6817]
[1753882888532,3.29472,3772.7,3772.6,3.6817]
[1753882889733,0.53007,3773.1,3773.0,3.6817]
[1753882889931,2.7646,3773.4,3772.7,3.2078]
[1753882890130,0.53008,3773.0,3772.8,1.5517]
[1753882890327,3.29471,3772.7,3772.6,2.4075]
[1753882890532,3.6287,3772.7,3772.6,2.4075]
[1753882890830,2.7646,3772.7,3772.6,2.4075]
[1753882891032,2.7646,3772.7,3772.6,3.6817]
[1753882891333,0.53011,3772.8,3771.9,2.67356]
[1753882891334,1.32534,3772.6,3772.2,3.6817]
[1753882891530,3.29482,3772.0,3771.9,2.4075]
[1753882891735,2.7646,3772.0,3771.9,2.4075]
[1753882892132,0.8641,3772.3,3772.0,0.53021]
[1753882892337,0.5302,3772.2,3772.0,0.5302]
[1753882892546,1.87648,3772.3,3772.1,2.93769]
[1753882892831,1.87648,3772.3,3772.2,3.6817]
[1753882893037,3.29478,3772.3,3772.2,3.6817]
[1753882893835,1.3463,3772.0,3771.9,3.6817]
[1753882894540,1.32539,3772.5,3771.8,3.73803]
[1753882894541,4.15893,3771.9,3771.8,3.2078]
[1753882894734,4.15893,3771.9,3771.8,4.0636]
[1753882894931,4.15893,3771.9,3771.8,5.6153]
[1753882895532,3.6287,3771.9,3771.8,5.6153]
[1753882896040,2.7646,3771.9,3771.8,5.6153]
[1753882898732,0.53031,3771.4,3771.3,0.9233]
[1753882898936,1.32578,3771.3,3770.6,3.2078]
[1753882899131,3.6709,3771.2,3770.8,1.45367]
[1753882899439,2.7579,3771.1,3771.0,0.9233]
[1753882899744,1.2925,3771.1,3771.0,3.7313]
[1753882900042,0.53034,3771.2,3771.1,0.53034]
[1753882900439,1.82282,3771.3,3771.1,0.53034]
[1753882900838,0.5303,3771.4,3771.2,3.7313]
[1753882901039,0.53026,3771.7,3771.5,4.26157]
[1753882901243,1.82276,3771.7,3771.6,3.7313]
[1753882901442,1.82271,3772.1,3771.4,4.53353]
[1753882901635,1.2925,3772.2,3771.8,0.53023]
[1753882901943,0.53018,3772.3,3772.2,0.53018]
[1753882902148,0.53018,3772.3,3772.2,3.7313]
[1753882902637,0.53024,3771.8,3771.6,3.2078]
[1753882902839,2.7579,3771.7,3771.6,3.2078]
[1753882903042,2.7579,3771.7,3771.6,4.1311]
[1753882903444,3.6709,3771.7,3771.6,4.1311]
[1753882903948,3.6709,3771.7,3771.6,5.6278]
[1753882904143,2.7579,3771.7,3771.6,5.6278]
[1753882904353,2.23856,3772.0,3771.6,5.6278]
[1753882904354,41.33021,3772.1,3771.9,0.53022]
[1753882904644,1.82271,3772.1,3772.0,3.7313]
[1753882904841,3.28811,3772.1,3772.0,3.7313]
[1753882905036,1.2925,3772.1,3772.0,2.42]
[1753882905237,1.2925,3772.2,3771.9,0.53022]
[1753882905442,2.7579,3772.2,3771.7,0.53025]
[1753882905635,0.53024,3771.8,3771.7,1.4967]
[1753882905840,3.28814,3771.8,3771.7,1.4967]
[1753882906042,3.6709,3771.7,3771.6,3.2078]
[1753882906241,0.53027,3771.6,3771.4,1.84159]
[1753882906450,1.4654,3771.6,3771.5,2.42]
[1753882906643,0.53024,3771.9,3771.2,3.2078]
[1753882906943,0.53026,3771.7,3771.2,3.2078]
[1753882907248,1.82271,3772.0,3771.9,3.7313]
[1753882907452,3.28811,3772.0,3771.9,3.7313]
[1753882907740,1.2925,3772.0,3771.9,3.7313]
[1753882908046,1.2925,3772.5,3771.8,1.50794402]
[1753882908347,1.82264,3772.5,3772.4,1.3113]
[1753882908548,2.7579,3772.8,3772.5,1.4967]
[1753882908846,2.7579,3772.7,3772.6,3.7313]
[1753882909047,3.28801,3772.7,3772.6,2.42]
[1753882909246,4.20101,3772.7,3772.6,2.42]
[1753882910046,4.20107,3772.3,3772.2,0.9233]
[1753882910247,1.82273,3771.9,3771.8,2.42]
[1753882910447,4.20113,3771.9,3771.8,0.9233]
[1753882910749,2.3784,3771.8,3771.7,3.2078]
[1753882911044,3.6709,3771.8,3771.7,3.2078]
[1753882911549,3.6709,3771.6,3771.5,1.4967]
[1753882911946,3.6709,3771.6,3771.5,2.42]
[1753882912547,0.53025,3771.7,3771.3,4.1311]
[1753882912548,3.6709,3771.4,3771.3,4.1311]
[1753882913250,3.6709,3771.4,3771.3,3.2078]
[1753882914052,2.7579,3771.4,3771.3,6.9391]
[1753882914252,1.2925,3771.4,3771.3,6.9391]
[1753882914549,5.9657,3772.1,3771.5,2.42]
[1753882914746,0.53026,3771.7,3771.4,3.7313]
[1753882914944,0.53024,3771.8,3771.5,0.9233]
[1753882915150,0.53025,3771.8,3771.7,0.53024]
[1753882915354,0.53025,3771.8,3771.7,3.7313]
[1753882916248,0.53021,3772.0,3771.9,0.53021]
[1753882916655,1.3254,3772.4,3772.0,0.53021]
[1753882916854,0.53019,3772.2,3772.1,0.53019]
[1753882917156,0.5301,3772.8,3772.6,0.53012]
[1753882917449,0.53011,3772.8,3772.6,3.7313]
[1753882917653,0.53016,3772.4,3772.3,0.9233]
[1753882917849,3.28808,3772.2,3772.1,4.1311]
[1753882918356,2.73571,3772.0,3771.9,1.4967]
[1753882918648,1.2925,3772.0,3771.9,3.7313]
[1753882918850,0.5302,3772.1,3771.9,0.53022]
[1753882919053,0.53017,3772.3,3772.1,0.5302]
[1753882919450,0.53017,3772.3,3772.2,3.7313]
[1753882919652,0.53016,3772.4,3772.3,4.26147]
[1753882919852,1.82266,3772.4,3772.3,3.7313]
[1753882920047,1.82266,3772.4,3772.3,0.9233]
[1753882920048,3.28806,3772.4,3772.3,0.9233]
[1753882920265,3.28806,3772.4,3771.8,4.5191]
[1753882920266,2.7579,3771.9,3771.8,3.2078]
[1753882920549,2.7579,3771.9,3771.8,4.1311]
[1753882920756,3.6709,3771.9,3771.4,6.54609]
[1753882920955,0.53026,3771.7,3771.6,0.53027]
[1753882921154,1.50794402,3772.4,3771.6,2.42]
[1753882921456,2.90861,3772.0,3771.8,3.2078]
[1753882921658,1.4654,3772.4,3771.9,4.26152]
[1753882921953,0.53021,3772.0,3771.9,1.3113]
[1753882922155,3.28811,3772.0,3771.9,1.3113]
[1753882922355,1.82271,3772.0,3771.9,1.3113]
[1753882922557,4.20111,3772.0,3771.8,3.2078]
[1753882922756,4.20111,3772.0,3771.8,4.1311]
[1753882922757,2.7579,3771.9,3771.8,4.1311]
[1753882922953,2.7579,3771.9,3771.8,5.6278]
[1753882923260,1.82269,3772.2,3771.9,3.7313]
[1753882923555,1.82271,3772.1,3772.0,3.7313]
[1753882923759,0.53019,3772.2,3772.1,2.0269]
[1753882923948,0.53017,3772.3,3772.1,0.5302]
[1753882924159,1.2925,3772.3,3772.2,3.7313]
[1753882925261,2.7579,3772.3,3772.2,2.42]
[1753882925458,2.7579,3772.3,3772.2,3.7313]
[1753882925850,1.82273,3771.9,3771.8,5.6278]
[1753882926253,4.20113,3771.9,3771.8,4.1311]
[1753882926456,2.7579,3771.6,3771.5,0.9233]
[1753882926660,3.6709,3771.6,3771.5,0.9233]
[1753882927077,2.7579,3771.6,3771.5,3.7313]
[1753882928158,1.2925,3771.6,3771.5,3.7313]
[1753882928359,1.4654,3771.9,3771.4,3.73809]
[1753882928360,1.3762,3771.9,3771.8,3.6723]
[1753882928569,0.53022,3772.0,3771.6,1.5142]
[1753882928760,0.53022,3772.0,3771.5,1.3257]
[1753882928761,0.53022,3772.0,3771.9,3.6723]
[1753882929055,1.90642,3772.0,3771.9,0.8631]
[1753882929255,4.23622,3772.0,3771.9,0.8631]
[1753882929455,4.23622,3772.0,3771.9,2.3773]
[1753882929657,4.23622,3772.0,3771.9,0.8631]
[1753882930056,0.53027,3771.6,3771.4,3.2078]
[1753882930261,0.53032,3771.3,3771.1,2.3773]
[1753882930453,0.53032,3771.3,3771.2,3.6723]
[1753882930454,1.90652,3771.3,3771.2,3.6723]
[1753882930649,1.3762,3771.3,3771.2,3.6723]
[1753882931052,2.86009,3771.5,3771.3,1.5142]
[1753882931053,3.33359,3771.5,3771.3,1.5142]
[1753882931260,1.3762,3771.5,3771.4,0.8631]
[1753882931455,0.53027,3771.6,3771.5,0.53028]
[1753882931657,0.53027,3771.6,3771.5,3.6723]
[1753882932056,4.23627,3771.6,3771.5,2.3773]
[1753882932259,4.23627,3771.6,3771.5,0.8631]
[1753882932865,4.23627,3771.6,3771.5,2.3773]
[1753882933062,1.3762,3771.6,3771.5,3.6723]
[1753882933265,1.90646,3771.7,3771.6,3.6723]
[1753882933462,3.33356,3771.7,3771.6,3.6723]
[1753882933664,0.53031,3771.3,3771.2,4.20262]
[1753882933865,1.90651,3771.3,3771.2,3.6723]
[1753882934061,0.53034,3771.1,3771.0,0.53035]
[1753882934361,1.4271,3771.1,3771.0,6.11544]
[1753882934560,0.9027,3771.3,3771.2,0.53032]
[1753882934767,0.53027,3771.6,3771.4,2.3773]
[1753882934953,0.53027,3771.6,3771.5,0.8631]
[1753882935162,0.53036,3771.0,3770.9,0.53037]
[1753882935462,1.90656,3771.0,3770.9,0.53037]
[1753882935665,1.90656,3771.0,3770.7,0.53038]
[1753882935961,0.53045,3770.3,3770.2,3.6723]
[1753882936158,1.4271,3770.3,3770.2,2.3773]
[1753882936359,4.23645,3770.3,3770.2,2.3773]
[1753882936767,3.33375,3770.3,3770.2,2.3773]
[1753882936959,1.3762,3770.3,3770.2,3.6723]
[1753882937159,1.90662,3770.6,3770.5,3.6723]
[1753882938460,3.33372,3770.6,3770.5,3.6723]
[1753882938664,3.33372,3770.6,3770.5,2.3773]
[1753882938866,1.90659,3770.8,3770.7,3.6723]
[1753882939961,4.23639,3770.8,3770.7,2.3773]
[1753882940768,3.33374,3770.4,3770.1,1.295]
[1753882940968,2.8341,3770.4,3770.3,9.3187]
[1753882941171,40.8,3770.9,3770.6,3.83211]
[1753882941374,0.53039,3770.8,3770.7,6.1109]
[1753882941667,3.36449,3770.8,3770.7,6.1109]
[1753882942071,4.36644,3770.4,3770.3,5.77825]
[1753882942369,4.36644,3770.4,3770.3,0.5631]
[1753882942670,4.36644,3770.4,3769.8,0.19629428]
[1753882942671,1.4271,3769.9,3769.8,0.19629428]
[1753882942965,5.83576,3769.8,3769.1,3.2078]
[1753882943161,0.53063,3769.0,3768.8,4.75267121]
[1753882943363,2.8033,3768.9,3768.8,7.12997121]
[1753882943559,2.8033,3768.9,3768.8,2.3773]
[1753882943865,1.3762,3768.8,3768.6,1.82568]
[1753882944065,1.90687,3768.8,3768.7,2.3773]
[1753882944268,44.0078,3769.5,3768.8,0.53066]
[1753882944469,1.3762,3769.4,3768.9,0.53064]
[1753882944665,1.3762,3769.4,3769.0,2.8092]
[1753882944869,1.3762,3769.4,3769.2,3.6723]
[1753882945070,40.8,3769.5,3769.4,0.53058]
[1753882945267,0.53058,3769.4,3769.3,0.53059]
[1753882945465,0.53056,3769.6,3769.5,0.53056]
[1753882945675,0.53056,3769.5,3769.2,0.53059]
[1753882945867,2.8033,3769.6,3769.4,0.53058]
[1753882946066,1.3762,3769.6,3769.5,3.6723]
[1753882946574,1.3762,3769.6,3769.5,6.8801]
[1753882947769,3.3339,3769.2,3769.0,3.2078]
[1753882948076,3.33396,3768.8,3768.7,2.3773]
[1753882948371,3.33396,3768.8,3768.7,0.8631]
[1753882948570,0.9027,3769.0,3768.5,3.2078]
[1753882948571,0.53069,3768.6,3768.5,3.2078]
[1753882948773,4.23669,3768.6,3768.5,4.0709]
[1753882948976,4.23669,3768.6,3768.5,5.5851]
[1753882949164,0.53073,3768.3,3768.1,1.5142]
[1753882949366,0.53073,3768.3,3768.1,2.3773]
[1753882949772,1.43343,3768.3,3768.1,2.3773]
[1753882949972,1.43343,3768.3,3767.8,0.72718848]
[1753882949973,2.03867402,3768.3,3767.8,0.19639848]
[1753882950475,42.83867402,3768.3,3767.8,1.05949848]
[1753882951272,47.83867402,3768.3,3767.8,0.19639848]
[1753882951895,62.20167402,3768.3,3767.9,2.3773]
[1753882952067,62.20167402,3768.3,3768.0,0.8631]
[1753882952569,42.83867402,3768.3,3768.0,2.3773]
[1753882952771,60.69273,3768.3,3768.2,3.67230626]
[1753882953068,63.49603,3768.3,3768.2,2.37730626]
[1753882954175,40.8,3768.3,3768.2,3.67230626]
[1753882954569,42.30794402,3768.3,3768.2,6.26e-06]
[1753882957274,61.66494402,3768.3,3768.2,6.26e-06]
[1753882959473,61.66494402,3768.3,3768.2,1.44930626]
[1753882959676,2.7349,3768.3,3768.2,3.70760626]
[1753882959976,0.5307,3768.5,3768.3,1.43563]
[1753882960164,3.7385,3768.6,3768.4,4.23831]
[1753882960365,1.32651,3769.3,3768.4,4.23831]
[1753882960366,1.276,3769.2,3768.9,3.7076]
[1753882960569,0.53056,3769.6,3769.3,4.23818]
[1753882960771,0.53056,3769.6,3768.8,4.53445]
[1753882960772,0.53052,3769.9,3769.7,2.8027]
[1753882960972,0.5305,3770.0,3769.9,3.7076]
[1753882961574,0.5305,3770.0,3769.9,0.9049]
[1753882961779,3.26545,3769.6,3769.5,2.3542]
[1753882961989,5.70529402,3769.6,3769.5,0.9049]
[1753882962483,1.80655,3769.6,3769.5,3.7076]
[1753882962676,0.53056,3769.6,3769.4,3.7076]
[1753882962979,0.53059,3769.3,3769.2,6.9154]
[1753882963167,0.53057,3769.5,3769.2,3.2078]
[1753882963372,0.53057,3769.5,3769.4,3.7076]
[1753882964676,0.53057,3769.5,3769.2,3.2078]
[1753882964677,0.53053,3769.8,3769.6,1.3534]
[1753882964984,0.53058,3769.4,3769.3,0.9049]
[1753882965284,0.53055,3769.7,3769.6,0.9049]
[1753882965476,0.53055,3769.7,3769.6,6.9154]
[1753882967774,0.53055,3769.7,3769.6,7.44595]
[1753882967980,0.53055,3769.7,3769.6,6.9154]
[1753882968481,1.32414034,3769.7,3769.6,6.9154]
[1753882968695,4.05904034,3769.7,3769.6,5.562]
[1753882969087,4.05904034,3769.7,3769.6,2.3542]
[1753882970790,4.99094034,3769.7,3769.2,4.5612]
[1753882970989,1.4589,3768.9,3768.5,1.3534]
[1753882971185,1.4589,3768.9,3767.9,0.9049]
[1753882971186,0.53073,3768.3,3767.9,0.9049]
[1753882971389,42.83867402,3768.3,3767.8,0.19639848]
[1753882971793,0.53079,3767.9,3767.8,4.74e-06]
[1753882971987,0.5309,3767.1,3767.0,0.9049]
[1753882972194,0.53094,3766.8,3766.7,1.3534]
[1753882972389,1.80705,3766.1,3765.8,0.19650278]
[1753882972596,0.53115,3765.3,3765.2,0.01859106]
[1753882972797,5.10191267,3765.3,3765.2,0.01859106]
[1753882972998,5.63306267,3765.3,3765.2,0.01859106]
[1753882973797,5.63306267,3765.3,3764.4,1.4493]
[1753882973798,0.53125,3764.6,3764.4,1.4493]
[1753882973991,2.78394402,3764.6,3764.4,2.3542]
[1753882974193,2.78394402,3764.6,3764.5,3.7076]
[1753882974387,1.50794402,3765.0,3764.2,4.75267121]
[1753882974592,3.2661,3765.0,3764.6,1.3534]
[1753882974792,0.53122,3764.8,3764.7,3.7076]
[1753882974994,1.276,3764.9,3764.7,3.7076]
[1753882975394,0.53122,3764.8,3764.7,3.7076]
[1753882975695,2.73912,3764.8,3764.7,1.4493]
[1753882975893,4.19802,3764.8,3764.3,4.5612]
[1753882976095,1.276,3764.7,3764.6,3.7076]
[1753882977499,0.53126,3764.6,3764.3,3.2078]
[1753882977695,4.19807,3764.5,3764.3,5.562]
[1753882977890,2.2079,3764.5,3764.4,2.3542]
[1753882978402,0.53124,3764.7,3764.6,1.3534]
[1753882978701,1.80724,3764.7,3764.6,3.7076]
[1753882978994,1.276,3764.7,3764.6,3.7076]
[1753882979498,0.53124,3764.7,3764.4,2.3542]
[1753882979696,1.276,3764.7,3764.5,0.53126]
[1753882980003,2.2079,3764.9,3764.4,1.4493]
[1753882980499,1.276,3764.6,3764.5,2.3542]
[1753882980703,0.53128,3764.4,3764.3,3.2078]
[1753882980998,2.2079,3764.4,3764.3,4.6571]
[1753882981197,2.2079,3764.4,3764.3,5.562]
[1753882981396,1.276,3764.4,3764.3,6.9154]
[1753882981596,1.99015,3764.6,3764.3,6.9154]
[1753882981792,2.2079,3764.8,3764.6,1.3534]
[1753882981995,0.5312,3765.0,3764.7,0.53124]
[1753882982199,0.53114,3765.4,3765.0,0.53118]
[1753882982394,3.73893,3765.5,3765.2,0.53117]
[1753882982595,3.2078,3765.9,3765.7,0.53109]
[1753882982798,3.2078,3765.9,3765.8,3.7076]
[1753882983295,3.73887,3765.9,3765.8,3.7076]
[1753882983605,1.276,3765.4,3765.3,3.7076]
[1753882983898,0.53113,3765.5,3765.0,3.73899]
[1753882984103,0.53117,3765.2,3765.1,3.7076]
[1753882984300,4.19797,3765.2,3765.1,1.4493]
[1753882984898,0.53122,3764.8,3764.7,2.2583]
[1753882985100,0.53122,3764.9,3764.8,2.3542]
[1753882985504,0.53128,3764.4,3764.3,6.9154]
[1753882985701,1.79993868,3764.4,3764.3,6.9154]
[1753882985898,4.19073868,3764.4,3764.3,3.2078]
[1753882986203,4.19073868,3764.4,3764.3,4.6571]
[1753882986204,3.6668,3764.4,3764.3,4.6571]
[1753882986399,3.6668,3764.4,3764.3,1.4493]
[1753882986400,1.276,3764.4,3764.3,1.4493]
[1753882986606,1.276,3764.4,3764.0,3.2078]
[1753882986607,2.92212,3764.1,3764.0,3.2078]
[1753882986802,0.53135,3763.9,3763.8,4.94927841]
[1753882986996,4.19815,3763.9,3763.8,0.1966072]
[1753882987204,4.19815,3763.9,3763.8,1.6459072]
[1753882987399,3.26625,3763.9,3763.8,2.5508072]
[1753882987599,1.80735,3763.9,3763.8,2.5508072]
[1753882988916,4.27665,3763.9,3763.8,1.6459072]
[1753882989102,4.27665,3763.9,3763.8,2.5295072]
[1753882989298,2.73795,3763.9,3763.8,3.8796072]
[1753882990407,1.276,3763.9,3763.8,3.8796072]
[1753882990608,40.8,3764.2,3764.1,3.6454]
[1753882991100,3.2078,3764.4,3764.2,0.5313]
[1753882991300,0.53132,3764.2,3764.0,3.6454]
[1753882991505,44.0078,3764.4,3764.2,4.1767]
[1753882991709,44.0078,3764.4,3764.2,0.5313]
[1753882991903,2.4693,3764.7,3764.4,0.53128]
[1753882991904,0.53125,3764.7,3764.4,0.53128]
[1753882992103,25.17777,3765.1,3764.3,3.6454]
[1753882992404,40.8,3765.0,3764.6,0.53124]
[1753882992601,0.53123,3764.8,3764.6,0.53124]
[1753882992802,0.53117,3765.2,3765.0,0.53118]
[1753882993105,0.53115,3765.4,3765.2,0.53116]
[1753882993305,1.309,3765.6,3764.7,1.32807]
[1753882993306,0.53112,3765.6,3765.4,3.6454]
[1753882993496,41.33111,3765.7,3765.4,4.17653]
[1753882993696,41.33111,3765.7,3765.5,3.6454]
[1753882993899,3.2078,3765.9,3765.5,0.53112]
[1753882994108,0.53109,3765.8,3765.6,1.3501]
[1753882994406,0.53109,3765.8,3765.7,1.3501]
[1753882994608,0.53109,3765.8,3765.7,3.6454]
[1753882994802,0.53118,3765.1,3765.0,4.5579]
[1753882995405,2.2396,3764.9,3764.7,5.5031]
[1753882995700,0.53121,3764.9,3764.8,2.7618]
[1753882995902,0.53121,3764.9,3764.8,3.6454]
[1753882996301,0.53127,3764.5,3764.4,2.2337]
[1753882996500,0.53124,3764.7,3764.6,0.53124]
[1753882996803,0.53126,3764.6,3764.4,3.73907]
[1753882997204,0.53126,3764.6,3764.5,3.6454]
[1753882997407,0.53125,3764.7,3764.5,3.6454]
[1753882997706,0.53127,3764.6,3764.4,3.73907]
[1753882998205,0.53127,3764.6,3764.5,3.6454]
[1753882998605,2.2396,3765.1,3764.4,3.2078]
[1753882998908,0.53121,3765.0,3764.9,3.6454]
[1753882999511,0.53115,3765.4,3765.3,3.6454]
[1753883000307,1.84015,3765.4,3765.3,3.6454]
[1753883000604,2.06985,3765.4,3765.3,3.6454]
[1753883000804,0.53115,3765.4,3765.3,3.6454]
[1753883001502,0.53113,3765.5,3765.2,0.53116]
[1753883001713,1.309,3765.7,3765.5,3.6454]
[1753883002007,1.309,3765.7,3765.6,3.6454]
[1753883002204,0.53111,3765.7,3765.6,3.6454]
[1753883003005,1.32779,3765.6,3765.0,0.5312]
[1753883003208,3.7783,3765.4,3765.1,1.4117]
[1753883003503,4.30945,3765.3,3765.2,1.4117]
[1753883004308,4.30945,3765.3,3765.2,2.2953]
[1753883004611,1.84015,3765.3,3765.2,3.6454]
[1753883004811,4.30945,3765.3,3765.2,3.6454]
[1753883005112,2.77075,3765.3,3765.2,3.6454]
[1753883005412,1.84015,3765.3,3765.2,3.6454]
[1753883005608,4.30945,3765.3,3765.2,2.2953]
[1753883005910,0.53119,3765.1,3765.0,0.53119]
[1753883006208,0.53117,3765.2,3765.1,0.53117]
[1753883006406,0.53117,3765.2,3765.1,3.6454]
[1753883008015,3.37887,3765.2,3765.1,3.6454]
[1753883008213,4.30947,3765.2,3765.1,3.6454]
[1753883008808,2.77077,3765.2,3765.1,3.6454]